Cogmind - Beta 10.2 @@@ ROGUE MODE // 2021.10.26 @ 00:52:34 Player: Burgers_Lettuce Result: Self-destructed Performance ------------- Evolutions (1) 500 Regions Visited (3) 600 Robots Destroyed (13) 65 Value Destroyed (257) 257 Prototype IDs (0) 0 Alien Tech Used (0) 0 Bonus (0) 0 TOTAL SCORE: 1422 Bonus ------- None Cogmind --------- Core Integrity 211/400 Matter 328/350 Energy 100/100 System Corruption 0% Temperature Cool (0) Movement Core (100) Ox1 Location -9/Materials Parts ------- > --- POWER (1) -------- (None) > --- PROPULSION (3) --- (None) > --- UTILITY (3) ------ Small Storage Unit Small Matter Pod > --- WEAPON (2) ------- (None) > --- INVENTORY (6) ---- Shock Trap Shock Trap Peak State ------------ > --- POWER ------------ Light Ion Engine > --- PROPULSION ------- Light Treads Wheel > --- UTILITY ---------- Small Storage Unit Medium Battery > --- WEAPON ----------- EM Pulse Gun Particle Gun > --- INVENTORY -------- Ion Engine Medium Laser Small Laser Beam Cannon [Rating: 8] Favorites ----------- Power Light Ion Engine Engine Light Ion Engine Propulsion Wheel Treads Light Treads Wheel Wheel Utility Small Storage Unit Storage Small Storage Unit Weapon Light Assault Rifle Energy Gun EM Pulse Gun Energy Cannon Beam Cannon Ballistic Gun Light Assault Rifle Launcher Rocket Launcher Build | -11 -10 -10 -9 ------- Run | Scr Mat Min Mat Slots Evolved 2 | . . . 2 Power . | . . . . Propulsion 1 | . . . 1 Utility 1 | . . . 1 Weapon . | . . . . Parts Attached 28 | 6 4 14 4 Power 3 | 1 . 2 . Engine 3 | 1 . 2 . Core . | . . . . Reactor . | . . . . Propulsion 12 | 2 . 8 2 Treads 1 | 1 . . . Leg . | . . . . Wheel 11 | 1 . 8 2 Hover . | . . . . Flight . | . . . . Utility 4 | 1 2 1 . Device . | . . . . Storage 4 | 1 2 1 . Processor . | . . . . Hackware . | . . . . Protection . | . . . . Artifact . | . . . . Weapon 9 | 2 2 3 2 Energy Gun 5 | 2 1 1 1 Energy Cannon 2 | . 1 . 1 Ballistic Gun 1 | . . 1 . Ballistic Cannon . | . . . . Launcher 1 | . . 1 . Special Weapon . | . . . . Impact Weapon . | . . . . Slashing Weapon . | . . . . Piercing Weapon . | . . . . Special Melee Weapon . | . . . . Unidentified Prototypes . | . . . . Parts Lost 14 | . . 6 8 Power 1 | . . . 1 Propulsion 6 | . . 2 4 Utility . | . . . . Weapon 7 | . . 4 3 Highest Loss Streak 8 | . . 2 8 Average Slot Usage (%) 91 | . 98 91 62 Engine 13 | . 14 14 9 Treads 10 | . 14 10 . Wheel 16 | . 14 17 22 Storage 26 | . 26 26 22 Energy Gun 10 | . 17 9 . Energy Cannon 2 | . 10 . 1 Ballistic Gun 5 | . . 8 . Launcher 3 | . . 3 7 Naked Turns . | . . . . Heaviest Build 14 | 11 14 14 14 Greatest Support 26 | 10 10 26 26 Greatest Overweight (x) 2 | 1 1 2 . Average Overweight (x) . | . 1 . . Largest Inventory Capacity 6 | 6 6 6 6 Average Capacity 5 | 5 6 6 6 Most Carried 6 | 3 5 6 6 Average Carried 4 | 1 3 5 4 Final Capacity 6 | 6 6 6 6 Final Carried 6 | 3 5 6 2 Class Distribution -------------------- 100% | Mutant Dominant Class ---------------- Mutant | -10/Materials Mutant | -10/Mines Mutant | -9/Materials Resources | -11 -10 -10 -9 ----------- Run | Scr Mat Min Mat Matter Collected 565 | 177 113 242 33 Remotely . | . . . . Salvage Created 299 | . 131 101 67 Parts 27 | . 7 11 9 Haulers Intercepted . | . . . . Recyclers Shooed . | . . . . Parts Field Recycled . | . . . . Retrieved Matter . | . . . . Parts Self-Destructed . | . . . . Prevented . | . . . . Kills | -11 -10 -10 -9 ------- Run | Scr Mat Min Mat Combat Hostiles Destroyed 14 | . 2 10 2 Guns 8 | . 2 6 . AOE 6 | . . 4 2 Classes Destroyed 7 | . 3 2 2 Builder 1 | . . . 1 Operator 1 | . 1 . . Watcher 1 | . 1 . . Swarmer 6 | . . 6 . Grunt 3 | . 2 . 1 Sentry 1 | . . . 1 Assembled 4 | . . 4 . Best Kill Streak 3 | . 2 3 2 Combat Bots Only 3 | . 1 3 1 Max Kills in Single Turn 2 | . 1 2 2 Gunslinging . | . . . . Exploded 2 | . . 2 1 Melee . | . . . . Uniques/NPCs Destroyed . | . . . . Combat | -11 -10 -10 -9 -------- Run | Scr Mat Min Mat Damage Taken 1301 | . 157 609 535 Core 333 | . 16 128 189 Absorbed by Shields . | . . . . Core Remaining (%) 71 | 100 . 42 . Volleys Fired 44 | . 12 23 9 Largest 2 | . 2 2 1 Hottest 105 | . 100 105 60 Shots Fired 72 | . 24 39 9 Gun 46 | . 12 34 . Cannon 16 | . 12 . 4 Launcher 10 | . . 5 5 Special . | . . . . Kinetic 16 | . . 16 . Thermal 33 | . 12 17 4 Explosive 10 | . . 5 5 Electromagnetic 13 | . 12 1 . Robot Hit Streak 8 | . 8 5 6 Robot Miss Streak 6 | . 1 6 1 Penetration Max . | . . . . Secondary Targets 1 | . . 1 . Max Gunslinging Chain 1 | . . 1 . Shots Hit Robots 43 | . 16 21 6 Core Hits 26 | . 8 13 5 Critical Hits . | . . . . Critical Kills . | . . . . Critical Parts Destroyed . | . . . . Melee Attacks . | . . . . Impact . | . . . . Slashing . | . . . . Piercing . | . . . . Sneak Attacks . | . . . . Combat Hostiles . | . . . . Follow-up Attacks . | . . . . Damage Inflicted 943 | . 291 446 206 Guns 347 | . 176 171 . Cannons 122 | . 88 . 34 Explosions 463 | . 25 266 172 Melee . | . . . . Ramming 11 | . 2 9 . Kinetic 39 | . . 39 . Thermal 268 | . 113 121 34 Explosive 438 | . . 266 172 Electromagnetic 187 | . 176 11 . Impact . | . . . . Slashing . | . . . . Piercing . | . . . . Highest Corruption . | . . . . Average Corruption . | . . . . Corruption Purged . | . . . . Overload Shots . | . . . . Overflow Damage . | . . . . Projectiles . | . . . . Explosions . | . . . . Melee . | . . . . Knockbacks . | . . . . Impact . | . . . . Kinetic . | . . . . Secondary . | . . . . Self-Inflicted Damage 97 | . 1 96 . Shots 4 | . . 4 . Rammed 4 | . 1 3 . Targets Rammed 4 | . 1 3 . Kicked . | . . . . Crushed . | . . . . Highest Temperature 444 | . 444 194 83 Average Temperature 117 | . 180 81 36 Received Heat Transfer 433 | . 93 220 120 Effects 1 | . 1 . . Damage (minor) 1 | . 1 . . Siege Activations . | . . . . Robots Corrupted . | . . . . Combat Hostiles . | . . . . Parts Fried 1 | . 1 . . Impact Corruptions . | . . . . Robots Melted . | . . . . Combat Hostiles . | . . . . Parts Melted 2 | . . 2 . Heat Transferred 642 | . 235 333 74 Parts Sabotaged . | . . . . Parts Stolen . | . . . . Parts Stripped . | . . . . Power Chain Reactions 1 | . 1 . . Missiles Intercepted . | . . . . Alert | -11 -10 -10 -9 ------- Run | Scr Mat Min Mat Peak Influence 216 | . 132 216 85 Initial 51 | . . 51 . Average 63 | . 56 73 31 Maximum Alert Level 1 | . . 1 . Low Security (%) 89 | 100 100 84 100 Level 1 10 | . . 15 . Level 2 . | . . . . Level 3 . | . . . . Level 4 . | . . . . Level 5 . | . . . . High Security . | . . . . Max Security . | . . . . Squads Dispatched 1 | . 1 . . Investigation 1 | . 1 . . Extermination . | . . . . Reinforcement . | . . . . Assault . | . . . . Garrison . | . . . . Intercept . | . . . . Construction Impeded . | . . . . Haulers Reinforced . | . . . . Stealth | -11 -10 -10 -9 --------- Run | Scr Mat Min Mat Distress Signals 4 | . 2 . 2 Communications Jammed . | . . . . Distress Signals . | . . . . Times Spotted 29 | . 7 13 9 Peak Tracking Total 8 | . 4 4 8 Tactical Retreats 5 | . 1 3 1 Traps | -11 -10 -10 -9 ------- Run | Scr Mat Min Mat Traps Triggered . | . . . . Indirectly . | . . . . Trap Hack Attempts . | . . . . Triggered . | . . . . Disarmed . | . . . . Reprogrammed . | . . . . Reused . | . . . . Traps Extracted . | . . . . Installed . | . . . . Triggered . | . . . . Machines | -11 -10 -10 -9 ---------- Run | Scr Mat Min Mat Machines Disabled . | . . . . Max in Single Turn . | . . . . Machines Sabotaged . | . . . . Garrisons Compromised . | . . . . Overloaded Fab Kills . | . . . . Fab Network Shutdowns . | . . . . Hacking | -11 -10 -10 -9 --------- Run | Scr Mat Min Mat Machines Accessed 4 | . 4 . . Terminals 2 | . 2 . . Fabricators . | . . . . Repair Stations . | . . . . Recycling Units 2 | . 2 . . Scanalyzers . | . . . . Garrison Access . | . . . . Total Hacks 10 | . 10 . . Successful 5 | . 5 . . Failed 5 | . 5 . . Catastrophic . | . . . . Database Lockouts . | . . . . Manual 7 | . 7 . . Terminals 7 | . 7 . . Fabricators . | . . . . Repair Stations . | . . . . Recycling Units 3 | . 3 . . Scanalyzers . | . . . . Garrison Access . | . . . . Terminal Hacks 1 | . 1 . . Record 1 | . 1 . . Fabricator Hacks . | . . . . Repair Station Hacks . | . . . . Recycling Unit Hacks 2 | . 2 . . Process 2 | . 2 . . Scanalyzer . | . . . . Garrison Access Hacks . | . . . . Unauthorized Hacks 2 | . 2 . . Terminals 1 | . 1 . . Botnet 1 | . 1 . . Fabricators . | . . . . Repair Stations . | . . . . Recycling Units 1 | . 1 . . Tunnel 1 | . 1 . . Scanalyzers . | . . . . Garrison Access . | . . . . Data Cores Recovered 1 | . 1 . . Used 1 | . 1 . . Hacking Detections 3 | . 3 . . Full Trace Events . | . . . . Feedback Events . | . . . . Feedback Blocked . | . . . . Robot Schematics Acquired . | . . . . Robots Built . | . . . . Matter . | . . . . Time . | . . . . Total Robot Build Rating . | . . . . Part Schematics Acquired . | . . . . Parts Built . | . . . . Matter . | . . . . Time . | . . . . Total Part Build Rating . | . . . . Parts Repaired . | . . . . Time . | . . . . Parts Recycled . | . . . . Recycled Matter 76 | . 76 . . Retrieved Matter . | . . . . Retrieved Components . | . . . . Parts Scanalyzed . | . . . . Part Schematics Acquired . | . . . . Parts Damaged . | . . . . Bothacking | -11 -10 -10 -9 ------------ Run | Scr Mat Min Mat Used RIF Installer . | . . . . Robots Hacked . | . . . . Non-combat . | . . . . Combat . | . . . . Robot Hacks Applied . | . . . . Relay Couplers Released . | . . . . Robots Rewired . | . . . . Allies Hacked . | . . . . Hacks Repelled . | . . . . Allies | -11 -10 -10 -9 -------- Run | Scr Mat Min Mat Total Allies . | . . . . Largest Group . | . . . . Highest-Rated Group . | . . . . Highest-Rated Ally . | . . . . Total Orders . | . . . . Ally Attacks . | . . . . Total Damage . | . . . . Kills . | . . . . Allies Corrupted . | . . . . Allies Melted . | . . . . Intel | -11 -10 -10 -9 ------- Run | Scr Mat Min Mat Robot Analysis Total . | . . . . Derelict Logs Recovered 1 | . . 1 . Drone Launches . | . . . . Drone Recoveries . | . . . . Exploration | -11 -10 -10 -9 ------------- Run | Scr Mat Min Mat Turns Passed 1332 | 53 293 884 102 Spaces Moved 943 | 48 267 544 84 Core 3 | 1 . 2 . Treads . | . . . . Legs . | . . . . Wheels 940 | 47 267 542 84 Hover . | . . . . Flight . | . . . . Fastest Speed 50 | 50 90 80 80 Average Speed 89 | 85 90 89 90 Slowest Speed 150 | 90 90 150 100 Overloaded Moves . | . . . . Propulsion Burnouts . | . . . . Robots Hopped . | . . . . Cave-ins Triggered . | . . . . Exploration Rate (%) 37 | 4 46 91 10 Regions Visited 3 Branch Regions 1 Pre-discovered Areas 1 | . 1 . . Known Exits Taken . | . . . . Unknown Exits Taken 3 | 1 1 1 . Scrap Searched 1 | . . 1 . Spaces Dug . | . . . . Terrain Destroyed 85 | . 4 38 43 Melee . | . . . . Projectile . | . . . . AOE 85 | . 4 38 43 Terrain Rammed . | . . . . Walls Destroyed . | . . . . Machines Disabled . | . . . . Actions | -11 -10 -10 -9 --------- Run | Scr Mat Min Mat Total 1359 | 56 296 907 100 Wait 319 | . 8 310 1 Move 940 | 47 266 543 84 Hop . | . . . . Pick Up 9 | 3 1 5 . Fast Attach 14 | 6 3 3 2 Attach 6 | . 1 3 2 Detach 3 | . 3 . . Swap 8 | . . 8 . Drop 12 | . 1 9 2 Fire 44 | . 12 23 9 Melee . | . . . . Ram 4 | . 1 3 . Kick . | . . . . Crush . | . . . . Escape Stasis . | . . . . Rewire . | . . . . Trap . | . . . . Miscellaneous . | . . . . Route ------- -11/Scrapyard -10/Materials (discovered 2 exits: [*Mat] / [*Min]) -10/Mines (discovered 2 exits: [*Mat x2]) -9/Materials History --------- Turn | Location | Event 9 | -11/Scrapyard | Discovered new exit (range 15) 54 | -11/Scrapyard | Entered Materials 244 | -10/Materials | Discovered new exit (range 10) 307 | -10/Materials | Build established: Mutant 335 | -10/Materials | Discovered new exit (range 15) 347 | -10/Materials | Entered Mines 414 | -10/Mines | Discovered new exit (range 5) 493 | -10/Mines | Received a Rocket Launcher from a helpful Derelict 626 | -10/Mines | Assembled infested the area 1001 | -10/Mines | Core integrity fell below 50% 1027 | -10/Mines | Discovered new exit (range 9) 1138 | -10/Mines | Found a hidden stash of uninstalled traps 1231 | -10/Mines | Entered Materials 1231 | -9/Materials | Evolved 2 slots: Propulsion x1, Utility x1 1333 | -9/Materials | Self-destructed Last Messages --------------- 01292_ U-05 Engineer lays Concrete. 01295_ U-05 Engineer builds a Wall. 01300_ U-05 Engineer lays Concrete. 01301_ G-34 Mercenary destroyed. 01301_ U-05 Engineer destroyed. 01304_ W-16 Scout sends out distress signal. 01307_ Rocket Launcher destroyed. 01308_ Acquired Wheel. 01316_ Wheel destroyed. 01317_ Beam Cannon destroyed. 01320_ The unstable cave ceiling collapses. 01322_ Acquired Sml. Laser. 01323_ W-16 Scout sends out distress signal. 01326_ U-05 Engineer lays Concrete. 01327_ Sml. Laser destroyed. 01328_ Ion Engine destroyed. 01328_ U-05 Engineer builds a Wall. 01331_ Com. Wheel destroyed. 01332_ Wheel destroyed. 01332_ U-05 Engineer builds a Wall. Map ----- +----------------------------------------------------+ | ?????????????????????????????????????????????????? | | ?????????????????????????????????????????????????? | | ?????????????????????????????????????????????????? | | ?????????????????????????????????????????????????? | | ?????????????????????????????????????????????????? | | ?????????????????????????????????????????????????? | | ?????????????????????????????????????????????????? | | ?????????????????????????????????????????????????? | | ?????????????????????????????????????????????????? | | ?????????????????????????????????????????????????? | | ?????????????????????????????????????????????????? | | ?????????????????????????????????????????????????? | | ?????????????????????????????????????????????????? | | ?????????????????????????????????????????????????? | | ???????????????????????????????##????????????????? | | ??????????????????????????????? ????????????????? | | ?????????????????????????????""" #???????????????? | | ?????????????????????????? """"" #???????????????? | | ???????????????????????????""""" #???????????????? | | ????????????????????????????""" /???????????????? | | ????????????????????????????? #???????????????? | | ?????????????????????????????? #########???????? | | ??????????????????#####+######## ## ### ##??????? | | ??????????????????# ss #???#### | | ??????????????????# """" w s # ##### | | ??????????????????# """" @ g %= * | | ??????????????????# """" !! # =|* | | ??????????????????# !!u# #%! | | ?????????????????# Y u! ##! #### | | ?????????????????###/####+###########+## ##??## | | ?????????????????? ???? ???????# ?# | | ?????????????????# ????? ?????? + # | | ?????????????????#????? ?????### + | | ??????????????????????? ???????# # | | ???????????????????????"" ???????# # | | ??????????????????????""" ???????############## | | ???????????????????????"" ############### | | ???????????????????????? + # | | ???????????????????????? ^ ###### # | | ????????????????????????" ?????????????# """ + | | ????????????????????????? ?????????????# """ # | | ????????????????????????????????????????# """ # | | ????????????????????????????????????????# # | | ????????????????????????????????????????######## | | ???????????????????????????????????????????????# | | ???????????????????????????????????????????????# | | ???????????????????????????????????????????????### | | ?????????????????????????????????????????????????? | | ?????????????????????????????????????????????????? | | ?????????????????????????????????????????????????? | +----------------------------------------------------+ Best States ------------- Heat Dissipation 28 Energy Generation 10 Energy Capacity 325 Matter Stores 350 Matter Capacity 350 Sight Range 16 Terrain Scan Density 10 Evasion (%) 44 Recoil Reduction 1 Item Schematics ----------------- None Robot Schematics ------------------ None Fabricated ------------ Nothing Alien Tech Used ----------------- None Achievements -------------- None Challenges ------------ None Game ------ Seed CoolantProcessingKit Manual? 0 Play Time 00:17:42 Cumulative 41.5 hours Start 2021.10.25 @ 18:04:02 End 2021.10.26 @ 00:52:34 Sessions 2 Manual Loads 0 Difficulty Rogue Special Mode None Game No. 46 Rogue 46 Adventurer 0 Explorer 0 Win Type - Total 0 Types 0/0/0/0/0/0/0/0/0 Lore% 30 Gallery% 38 Achievement% 29 Wizard Run 0 Options --------- ASCII 0 Keyboard 1 Movement Numpad Keybinds 0 Fullscreen 2 Font 36/X11 Map View 76x50 Tactical HUD 1 Map Filters NONE Filters NONE Steam 1 RUN: b4d4d832-a48e-415b-8946-a36786f1de3f